bitfinex-derivatives/quotes_ETHF0:USTF0_20240930
["timestamp","ask_amount","ask_price","bid_price","bid_amount"]
[1727697453645,0.3801,2630.7,2630.6,4.32352554]
[1727697453948,0.38009,2630.8,2630.5,0.38013]
[1727697454150,0.38005,2631.1,2630.6,0.38011]
[1727697454349,0.38009,2630.9,2630.6,4.35788961]
[1727697454650,0.38007,2631.0,2630.7,0.3801]
[1727697454847,0.95011,2631.2,2630.5,3.2078]
[1727697455041,0.38008,2630.9,2630.7,0.3801]
[1727697455450,0.38007,2631.0,2630.7,0.3801]
[1727697455754,0.38008,2630.9,2630.7,0.3801]
[1727697455944,0.95011,2631.2,2630.6,4.36875321]
[1727697456347,0.95016,2631.0,2630.6,4.36875321]
[1727697456546,0.95011,2631.2,2630.6,4.36875321]
[1727697456742,0.3801,2630.7,2630.6,4.36875321]
[1727697458046,0.3801,2630.7,2630.6,4.74887321]
[1727697458354,3.2078,2631.2,2630.6,4.36875321]
[1727697458549,0.95018,2631.0,2630.6,0.38012]
[1727697458748,0.95018,2631.0,2630.5,3.2078]
[1727697458949,0.38011,2630.7,2630.5,3.2078]
[1727697459150,4.15789,2631.2,2630.5,3.58792]
[1727697459151,0.38012,2630.6,2630.5,3.58792]
[1727697459355,0.9502,2630.9,2630.5,3.2078]
[1727697459554,0.3801,2630.8,2630.6,4.53731736]
[1727697459751,0.95019,2630.9,2630.5,7.36500736]
[1727697459959,0.38011,2630.7,2630.6,0.38011]
[1727697460158,0.38011,2630.7,2630.6,4.374206]
[1727697460456,0.38011,2630.7,2630.6,0.38011]
[1727697460658,0.38012,2630.6,2630.5,3.58793]
[1727697461454,0.95019,2630.9,2630.5,3.2078]
[1727697461758,3.2078,2631.2,2630.5,3.2078]
[1727697461959,0.38012,2630.6,2630.5,3.58792]
[1727697465777,0.38012,2630.6,2630.5,3.2078]
[1727697466067,0.38012,2630.6,2630.5,3.58793]
[1727697466265,0.38012,2630.6,2630.5,3.2078]
[1727697469166,0.38012,2630.6,2630.5,3.58793]
[1727697469468,0.38012,2630.6,2630.5,3.2078]
[1727697469872,0.38008,2630.9,2630.8,0.38007]
[1727697470071,0.95013,2631.1,2630.5,7.28357879]
[1727697470267,0.38011,2630.7,2630.6,0.38011]
[1727697470668,0.95013,2631.1,2630.5,7.28357879]
[1727697470964,0.95013,2631.1,2630.2,3.2078]
[1727697470965,0.38016,2630.3,2630.2,3.2078]
[1727697471172,3.2078,2630.6,2629.9,3.2078]
[1727697471469,3.2078,2630.6,2629.5,3.7781]
[1727697471470,0.38022,2630.0,2629.7,0.38024]
[1727697471664,0.38024,2629.8,2629.7,0.38024]
[1727697471864,0.38017,2630.3,2630.2,0.38017]
[1727697472068,0.95039,2630.4,2629.8,10.28073466]
[1727697472269,3.2078,2630.6,2629.9,0.38022]
[1727697472270,0.38019,2630.1,2629.9,0.38022]
[1727697472467,0.38019,2630.1,2630.0,0.3802]
[1727697472676,0.95043,2630.3,2629.9,4.15293466]
[1727697472875,0.38018,2630.2,2630.1,0.38018]
[1727697473080,0.95043,2630.3,2629.9,4.15293466]
[1727697473284,4.15811,2630.6,2630.1,0.38018]
[1727697473285,0.38018,2630.2,2630.1,0.38018]
[1727697474280,0.95036,2630.5,2629.9,4.15293466]
[1727697474473,0.38017,2630.3,2630.2,0.38017]
[1727697475473,0.95039,2630.4,2630.1,0.38019]
[1727697475676,0.95039,2630.4,2629.9,4.15293466]
[1727697475876,3.2078,2630.3,2629.4,6.1278]
[1727697476084,1.33063,2630.2,2629.9,0.38022]
[1727697476285,0.38018,2630.2,2629.4,11.27182783]
[1727697476483,3.2078,2630.3,2629.4,11.27182783]
[1727697476484,3.2078,2630.3,2629.4,6.1278]
[1727697476984,0.38026,2629.6,2629.5,4.19330783]
[1727697477981,0.38028,2629.5,2629.4,0.38028]
[1727697478181,0.38028,2629.5,2629.1,7.07863]
[1727697478182,0.95064,2629.7,2629.1,6.1278]
[1727697478383,0.38032,2629.3,2629.2,0.38031]
[1727697478583,0.38032,2629.2,2629.1,3.58813]
[1727697478985,0.38032,2629.2,2629.1,3.2078]
[1727697479194,0.38032,2629.2,2629.1,3.58813]
[1727697479386,0.38032,2629.2,2629.1,3.2078]
[1727697479685,0.38032,2629.2,2629.1,3.58813]
[1727697479986,0.38031,2629.3,2629.2,0.38031]
[1727697480483,0.8482,2629.8,2629.2,5.30187461]
[1727697480690,1.78,2630.3,2629.3,4.41853463]
[1727697480987,0.38023,2629.8,2629.7,3.30024]
[1727697481487,1.78,2630.3,2630.0,0.3802]
[1727697481681,1.78,2630.3,2629.7,4.3775397]
[1727697481987,0.38022,2630.0,2629.9,0.38022]
[1727697482177,0.38023,2629.9,2629.7,4.7577797]
[1727697482383,1.78,2630.3,2629.8,1.49909765]
[1727697482583,0.38018,2630.2,2630.0,0.3802]
[1727697482786,1.78,2630.3,2629.8,4.01004636]
[1727697482987,0.3802,2630.1,2629.9,0.38021]
[1727697483182,1.78,2630.3,2629.8,4.01004636]
[1727697483491,0.3802,2630.1,2629.8,4.01004636]
[1727697483689,0.38017,2630.3,2630.0,0.38019]
[1727697483887,0.38014,2630.5,2630.0,2.92]
[1727697484085,3.19142,2630.6,2630.2,0.38017]
[1727697484288,0.38011,2630.7,2630.3,0.38015]
[1727697485289,3.5879,2630.8,2630.4,0.38013]
[1727697485489,5.9083,2631.2,2630.4,2.92]
[1727697485681,0.0341,2630.5,2630.4,2.92]
[1727697485884,0.0341,2630.5,2630.4,3.30015]
[1727697486082,0.0341,2630.5,2630.4,2.92]
[1727697486693,0.0341,2630.5,2630.4,3.30015]
[1727697486993,0.41423,2630.5,2630.4,2.92]
[1727697487186,0.0341,2630.5,2630.4,2.92]
[1727697487591,0.41423,2630.5,2630.4,2.92]
[1727697487893,0.0341,2630.5,2630.4,2.92]
[1727697488885,0.0341,2630.5,2630.4,3.30015]
[1727697489494,0.3801,2630.8,2630.5,0.38012]
[1727697490001,2.7005,2631.2,2630.7,2.92]
[1727697490296,2.7005,2631.2,2630.7,0.38009]
[1727697490297,0.38007,2631.0,2630.7,0.38009]
[1727697490793,2.7005,2631.2,2630.8,4.38173975]
[1727697490990,0.38007,2630.9,2630.8,4.38173975]
[1727697491192,0.38009,2630.8,2630.7,4.02062307]
[1727697491387,0.38009,2630.8,2630.6,0.38012]
[1727697491792,0.38007,2631.0,2630.8,0.38009]
[1727697491994,3.65061,2631.2,2630.6,3.2078]
[1727697492194,3.65061,2631.2,2630.7,4.32849029]
[1727697492396,0.38009,2630.8,2630.6,3.58791]
[1727697492693,0.38008,2630.9,2630.8,4.32849029]
[1727697492891,0.38008,2630.9,2630.7,4.32849029]
[1727697493086,0.38008,2630.9,2630.6,3.58791]
[1727697493298,0.38007,2630.9,2630.8,4.20799802]
[1727697493697,0.38007,2630.9,2630.7,0.3801]
[1727697493897,0.38009,2630.8,2630.6,3.58791]
[1727697494095,2.7005,2631.2,2630.9,0.38007]
[1727697494299,0.38008,2630.9,2630.8,4.24156429]
[1727697494495,0.95001,2631.5,2631.1,0.38005]
[1727697494496,0.38,2631.5,2631.1,0.38005]
[1727697494797,3.2078,2631.6,2631.1,2.92]
[1727697494990,0.38,2631.4,2631.2,3.94768732]
[1727697496001,0.38,2631.5,2631.2,3.94768732]
[1727697496799,0.38001,2631.4,2631.2,3.94768732]
[1727697496995,3.2078,2631.6,2631.2,3.94768732]
[1727697497397,0.38002,2631.3,2630.9,0.38007]
[1727697498098,3.2078,2631.6,2630.9,0.38007]
[1727697498398,0.38001,2631.4,2631.0,0.38006]
[1727697498600,3.2078,2631.6,2630.8,6.1278]
[1727697498900,0.38002,2631.3,2630.9,0.38007]
[1727697499094,3.2078,2631.6,2630.8,6.1278]
[1727697499299,0.38001,2631.4,2631.0,0.38005]
[1727697499990,3.2078,2631.6,2631.0,0.38005]
[1727697500495,0.38003,2631.3,2630.9,0.38007]
[1727697500697,3.58778,2631.6,2631.2,0.38002]
[1727697501208,0.38001,2631.4,2631.0,0.38005]
[1727697501395,0.38001,2631.4,2631.1,0.38004]
[1727697501695,3.2078,2631.6,2630.9,4.11437121]
[1727697501897,0.37999,2631.5,2631.2,0.38002]
[1727697502502,3.8,2631.5,2630.9,4.11437121]
[1727697502801,3.2078,2631.6,2630.7,2.92]
[1727697503000,0.94998,2631.5,2630.7,2.92]
[1727697503196,0.38004,2631.2,2630.9,0.38007]
[1727697503396,0.38005,2631.1,2630.8,3.58788]
[1727697503597,0.38003,2631.3,2630.9,0.38006]
[1727697503897,0.38003,2631.2,2630.9,0.38006]
[1727697504402,3.2078,2631.3,2630.8,3.2078]
[1727697504700,3.2078,2631.3,2630.9,0.38006]
[1727697504701,1.71463,2631.2,2630.9,0.38006]
[1727697505295,0.38005,2631.1,2630.8,3.58788]
[1727697505592,0.38006,2631.0,2630.8,3.58788]
[1727697506198,0.38006,2631.0,2630.8,3.2078]
[1727697506408,4.5424,2631.2,2630.8,3.2078]
[1727697506598,0.38007,2630.9,2630.8,3.2078]
[1727697506800,0.38007,2631.0,2630.8,3.2078]
[1727697506996,4.5424,2631.2,2630.9,0.38007]
[1727697507203,4.92244,2631.2,2630.9,0.38007]
[1727697507503,0.38005,2631.1,2630.9,0.38007]
[1727697507697,0.38005,2631.1,2630.5,3.2078]
[1727697507894,0.38006,2631.0,2630.8,0.38008]
[1727697508107,0.38005,2631.1,2630.9,0.38007]
[1727697508307,1.71464,2631.2,2630.9,0.38007]
[1727697508603,1.71464,2631.2,2630.5,4.15812]
[1727697508604,0.38005,2631.1,2630.8,0.38008]
[1727697508805,1.3346,2631.2,2630.5,3.2078]
[1727697509102,0.38007,2631.0,2630.7,0.38009]
[1727697509306,2.2847,2631.2,2630.7,0.38009]
[1727697509504,0.38008,2630.9,2630.7,0.38009]
[1727697509707,0.38008,2630.9,2630.6,0.3801]
[1727697510010,0.38008,2630.9,2630.7,0.3801]
[1727697510396,5.4925,2631.2,2630.6,2.37]
[1727697510707,0.3801,2630.8,2630.6,2.37]
[1727697510902,0.3801,2630.7,2630.6,2.37]
[1727697511096,5.4925,2631.2,2630.6,2.37]
[1727697511097,2.2847,2631.2,2630.6,2.37]
[1727697511301,0.3801,2630.7,2630.6,2.37]
[1727697511810,3.2078,2631.0,2630.6,2.75011]
[1727697511811,0.3801,2630.8,2630.6,2.75011]
[1727697512011,3.2078,2631.0,2630.6,2.37]
[1727697512211,0.38008,2630.9,2630.7,0.38009]
[1727697512710,0.38007,2631.0,2630.8,0.38008]
[1727697512912,1.3346,2631.2,2630.6,2.37]
[1727697513096,0.38005,2631.1,2630.9,0.38006]
[1727697513301,0.38007,2631.0,2630.8,0.38009]
[1727697514101,1.3346,2631.2,2631.0,0.38005]
[1727697514305,0.38005,2631.1,2630.9,2.75006]
[1727697514603,1.3346,2631.2,2630.6,0.9503]
[1727697515005,1.71464,2631.2,2631.0,0.38005]
[1727697515308,1.3346,2631.2,2630.6,0.9503]
[1727697515510,1.71464,2631.2,2631.0,0.38005]
[1727697515701,1.3346,2631.2,2630.6,0.9503]
[1727697515901,0.38006,2631.1,2630.9,0.38007]
[1727697516409,1.71464,2631.2,2630.7,0.95026]
[1727697516602,1.3346,2631.2,2630.5,6.1278]
[1727697516807,1.71464,2631.2,2631.0,0.38005]
[1727697517315,1.3346,2631.2,2631.1,0.38005]
[1727697517503,3.58781,2631.4,2630.8,0.95021]
[1727697517504,0.38001,2631.4,2631.2,0.38002]
[1727697517702,0.38001,2631.4,2631.3,0.38002]
[1727697518100,0.38001,2631.4,2631.2,0.38003]
[1727697518303,0.38001,2631.4,2631.2,0.38002]
[1727697518509,3.2078,2631.7,2631.0,3.98230311]
[1727697519015,0.38,2631.5,2631.3,0.38001]
[1727697519205,0.37998,2631.6,2631.4,0.38]
[1727697519714,0.37999,2631.6,2631.3,0.38001]
[1727697519910,0.94988,2631.8,2631.4,0.38]
[1727697520107,0.37996,2631.7,2631.3,0.38001]
[1727697520411,0.37998,2631.6,2631.4,0.38]
[1727697520604,0.37997,2631.6,2631.3,0.38]
[1727697520803,0.38,2631.5,2631.1,3.2078]
[1727697521014,0.37998,2631.6,2631.4,0.38]
[1727697521209,4.15772,2631.7,2631.1,3.2078]
[1727697521410,0.37999,2631.5,2631.3,0.38001]
[1727697521806,0.38,2631.5,2631.3,0.38001]
[1727697522006,4.15772,2631.7,2631.3,0.38001]
[1727697522207,0.37998,2631.6,2631.3,0.38001]
[1727697522514,0.37998,2631.6,2631.4,0.38]
[1727697522713,0.37998,2631.6,2631.3,0.38]
[1727697523016,0.37998,2631.6,2631.4,0.38]
[1727697523208,0.38,2631.5,2631.2,0.38002]
[1727697523408,2.7994,2631.9,2631.1,3.2078]
[1727697523611,0.38,2631.5,2631.2,0.38003]
[1727697523816,0.38001,2631.4,2631.2,0.38003]
[1727697524214,0.9499,2631.7,2631.2,0.38003]
[1727697524410,2.7994,2631.9,2631.1,3.2078]
[1727697524615,0.94987,2631.8,2631.1,3.2078]
[1727697524816,2.7994,2631.9,2630.9,2.92]
[1727697524817,4.15772,2631.7,2630.9,2.92]
[1727697525017,0.38001,2631.4,2631.2,0.38003]
[1727697525514,0.38001,2631.4,2631.2,0.38002]
[1727697525709,4.15772,2631.7,2631.3,0.38001]
[1727697525909,0.37999,2631.5,2631.3,0.38001]
[1727697526109,0.38,2631.5,2631.2,0.38002]
[1727697526516,0.37999,2631.5,2631.3,0.38001]
[1727697527014,0.38,2631.5,2631.3,0.38001]
[1727697527411,4.15772,2631.7,2631.3,0.38001]
[1727697527608,4.15772,2631.7,2631.3,0.38]
[1727697527609,0.37999,2631.6,2631.3,0.38]
[1727697527813,0.37999,2631.5,2631.3,0.38001]
[1727697528015,4.15772,2631.7,2631.3,0.38001]
[1727697528212,4.15772,2631.7,2631.2,0.38002]
[1727697528514,3.2078,2631.7,2631.1,3.2078]
[1727697528715,3.2078,2631.4,2630.7,3.2078]
[1727697529030,0.38005,2631.1,2630.9,0.38007]
[1727697529223,0.95005,2631.4,2630.7,3.2078]
[1727697529417,0.38003,2631.2,2630.9,0.38006]
[1727697529718,0.38005,2631.1,2630.9,0.38006]
[1727697530020,0.38006,2631.0,2630.8,0.38008]
[1727697530622,0.38006,2631.0,2630.7,3.58789]
[1727697530816,0.38006,2631.0,2630.8,0.38009]
[1727697531119,0.95009,2631.2,2630.7,3.2078]
[1727697531309,0.38007,2631.0,2630.8,0.38009]
[1727697531914,0.95009,2631.2,2630.7,5.5778]
[1727697532210,3.2078,2631.0,2630.3,3.2078]
[1727697532407,0.38011,2630.7,2630.5,0.38013]
[1727697532607,0.95024,2630.8,2630.3,3.2078]
[1727697532918,0.95024,2630.8,2630.4,0.38014]
[1727697532919,0.38013,2630.6,2630.4,0.38014]
[1727697533114,0.38014,2630.5,2630.3,3.58795]
[1727697533315,0.38014,2630.5,2630.4,0.38015]
[1727697533516,0.95027,2630.7,2630.3,3.58796]
[1727697533713,0.38012,2630.6,2630.3,3.58796]
[1727697533911,40.8,2630.9,2630.3,3.2078]
[1727697534118,0.38015,2630.4,2630.2,0.38017]
[1727697534621,0.38015,2630.4,2630.1,0.38019]
[1727697534816,0.95023,2630.8,2630.3,0.38016]
[1727697535022,44.0078,2630.9,2630.2,2.37]
[1727697535225,0.38015,2630.4,2630.2,2.75016]
[1727697535421,0.38016,2630.3,2630.2,2.37]
[1727697535926,0.38016,2630.3,2630.2,2.75018]
[1727697536221,0.9503,2630.7,2630.0,2.37]
[1727697536421,44.0078,2630.9,2630.2,2.37]
[1727697536620,0.38015,2630.4,2630.2,2.37]
[1727697536822,5.5778,2630.5,2629.7,3.2078]
[1727697537018,0.95046,2630.2,2629.6,2.37]
[1727697537323,0.38019,2630.1,2629.8,2.75022]
[1727697537515,0.38021,2630.0,2629.8,2.37]
[1727697537710,0.38022,2629.9,2629.8,2.37]
[1727697537910,0.38021,2630.0,2629.8,2.37]
[1727697538324,2.34551,2630.3,2629.8,2.75023]
[1727697538520,3.588,2630.1,2629.8,2.75023]
[1727697538819,3.2078,2630.1,2629.8,2.75023]
[1727697539022,0.38021,2630.0,2629.8,2.37]
[1727697539216,0.38021,2630.0,2629.8,2.75023]
[1727697539416,5.55331,2630.3,2629.8,2.75023]
[1727697539417,0.3802,2630.1,2629.8,2.75023]
[1727697539617,4.98307,2630.3,2630.0,2.75019]
[1727697539819,0.38018,2630.2,2630.0,2.37]
[1727697540018,1.3951,2630.3,2629.8,2.75023]
[1727697540321,0.38018,2630.2,2629.9,0.38021]
[1727697540513,1.77527,2630.3,2630.0,0.3802]
[1727697540711,3.2078,2630.6,2630.0,2.37]
[1727697540918,3.2078,2630.6,2629.9,4.25415032]
[1727697540919,0.3802,2630.0,2629.9,4.25415032]
[1727697541120,0.38023,2629.9,2629.5,2.37]
[1727697541423,0.38023,2629.9,2629.6,0.38025]
[1727697541816,0.95045,2630.2,2629.5,2.37]
[1727697542121,0.38019,2630.1,2629.9,0.38021]
[1727697542519,0.38019,2630.1,2629.7,2.37]
[1727697542717,0.3802,2630.1,2629.9,0.38021]
[1727697543226,2.34263,2630.3,2630.0,0.38019]
[1727697543227,0.38018,2630.2,2630.0,0.38019]
[1727697543421,3.2078,2630.4,2629.7,2.37]
[1727697543631,0.38015,2630.5,2630.2,0.38016]
[1727697543814,0.38014,2630.5,2630.3,0.38015]
[1727697544012,0.38015,2630.4,2630.2,2.37]
[1727697544217,0.38014,2630.5,2630.3,0.38016]
[1727697544519,0.38014,2630.5,2630.3,0.38015]
[1727697544719,0.38015,2630.4,2630.2,2.75017]
[1727697544924,0.38014,2630.5,2630.3,0.38016]
[1727697545621,2.81728,2630.7,2630.3,0.38016]
[1727697545824,0.38014,2630.5,2630.3,0.38016]
[1727697546118,0.38015,2630.5,2630.3,0.38016]
[1727697546514,1.867,2630.7,2630.2,2.37]
[1727697546718,0.38012,2630.6,2630.4,0.38013]
[1727697546917,1.867,2630.7,2630.5,0.38012]
[1727697547122,0.38012,2630.6,2630.5,0.38012]
[1727697548320,0.38012,2630.6,2630.4,0.38014]
[1727697548825,0.38012,2630.6,2630.2,5.5778]
[1727697549024,4.6,2630.8,2630.4,0.38014]
[1727697549221,0.38013,2630.6,2630.4,0.38014]
[1727697550023,0.38013,2630.6,2630.5,0.38013]
[1727697550229,5.55024,2630.8,2630.2,5.5778]
[1727697550530,0.38013,2630.6,2630.4,0.38014]
[1727697551331,0.38013,2630.5,2630.4,0.38014]
[1727697551624,0.38013,2630.6,2630.2,5.5778]
[1727697552027,3.2078,2630.7,2630.2,3.2078]
[1727697552331,3.2078,2630.7,2629.9,1.4406]
[1727697552332,0.95034,2630.5,2629.9,3.58801]
[1727697552521,0.95041,2630.3,2629.9,3.58801]
[1727697552723,0.3802,2630.0,2629.9,3.2078]
[1727697552929,0.3802,2630.0,2629.9,3.58802]
[1727697553117,0.95041,2630.3,2629.9,3.58802]
[1727697553118,0.3802,2630.1,2629.9,3.58802]
[1727697553626,0.95041,2630.3,2629.9,3.58802]
[1727697553826,0.3802,2630.0,2629.9,3.58802]
[1727697554426,0.95041,2630.3,2629.9,3.58802]
[1727697554626,0.3802,2630.1,2629.9,3.2078]
[1727697554822,41.75034,2630.5,2629.9,3.2078]
[1727697555033,0.38018,2630.2,2630.1,0.38019]
[1727697555425,0.38019,2630.1,2630.0,0.3802]
[1727697555617,0.95039,2630.4,2630.0,0.3802]
[1727697555823,0.38018,2630.2,2630.1,0.38019]
[1727697556427,0.38016,2630.3,2630.0,0.38019]
[1727697556628,0.38019,2630.2,2630.0,0.38019]
[1727697556826,0.38019,2630.1,2630.0,0.38019]
[1727697557024,0.38018,2630.2,2630.1,0.38019]
[1727697557626,0.3802,2630.0,2629.9,3.58801]
[1727697558226,0.3802,2630.1,2630.0,0.3802]
[1727697558422,0.3802,2630.0,2629.9,3.58801]
[1727697559229,0.95042,2630.3,2630.0,0.3802]
[1727697559230,0.3802,2630.1,2630.0,0.3802]
[1727697559626,0.3802,2630.0,2629.9,3.2078]
[1727697561631,0.95047,2630.2,2629.8,0.38023]
[1727697561933,0.38022,2629.9,2629.8,0.38023]
[1727697562336,0.38021,2630.1,2630.0,0.3802]
[1727697562840,0.38021,2630.0,2629.9,0.3802]
[1727697564540,0.38021,2630.0,2629.7,3.2078]
[1727697564840,0.38023,2629.8,2629.7,3.58804]
[1727697565333,0.38023,2629.8,2629.7,7.39044]
[1727697565931,0.38023,2629.8,2629.7,3.58804]
[1727697567552,0.38023,2629.8,2629.7,3.58805]
[1727697568246,0.38021,2630.0,2629.4,8.4086]
[1727697568443,0.38026,2629.7,2629.6,0.38025]
[1727697568841,3.2078,2630.0,2629.1,3.32082]
[1727697569046,0.38029,2629.5,2629.4,0.38028]
[1727697571845,0.95061,2629.8,2629.1,3.32082]
[1727697572035,3.2078,2629.7,2629.1,3.32082]
[1727697572240,0.38029,2629.5,2629.4,0.38028]
[1727697572646,0.38022,2629.9,2629.7,0.38024]
[1727697572845,1.5028,2630.1,2629.8,0.38022]
[1727697573042,1.5028,2630.1,2629.6,2.37]
[1727697573238,0.3802,2630.0,2629.8,0.38023]
[1727697573842,1.5028,2630.1,2629.8,0.38023]
[1727697574036,0.38021,2630.0,2629.8,0.38023]
[1727697574441,1.5028,2630.1,2629.6,2.37]
[1727697574636,1.883,2630.1,2629.9,0.38021]
[1727697574841,1.5028,2630.1,2629.9,0.38022]
[1727697575037,1.883,2630.1,2629.9,0.38022]
[1727697575242,1.5028,2630.1,2629.9,0.38022]
[1727697575951,0.3802,2630.0,2629.9,0.38022]
[1727697576345,0.3802,2630.0,2629.6,3.35154954]
[1727697576651,0.3802,2630.0,2629.8,0.38023]
[1727697577050,1.5028,2630.1,2629.6,3.35154954]
[1727697577257,0.38022,2630.0,2629.8,0.38023]
[1727697577753,3.8024,2630.0,2629.6,0.98154954]
[1727697577953,0.38024,2629.8,2629.6,0.38026]
[1727697578151,4.7106,2630.1,2629.5,0.98154954]
[1727697578356,0.38026,2629.6,2629.4,1.36182954]
[1727697578557,0.38028,2629.5,2629.4,1.36183954]
[1727697578751,0.38027,2629.6,2629.4,1.36183954]
[1727697579159,0.38027,2629.6,2629.4,0.98154954]
[1727697579354,0.38026,2629.7,2629.5,0.38028]
[1727697579951,0.9506,2629.8,2629.5,0.38028]
[1727697580151,0.38026,2629.7,2629.5,0.38028]
[1727697580351,0.9506,2629.8,2629.5,0.38028]
[1727697580352,0.38026,2629.6,2629.5,0.38028]
[1727697580551,0.38026,2629.7,2629.5,0.38028]
[1727697581551,0.38026,2629.7,2629.4,0.98154954]
[1727697581753,0.0341,2630.3,2629.6,2.37]
[1727697582052,0.0341,2630.3,2630.2,0.38018]
[1727697582263,0.0341,2630.3,2630.2,1.36172954]
[1727697582455,0.38013,2630.6,2630.2,0.98154954]
[1727697582662,2.7675,2630.8,2630.4,0.38015]
[1727697582856,0.38013,2630.6,2630.4,0.38015]
[1727697583058,0.38013,2630.5,2630.3,0.38015]
[1727697583560,2.7675,2630.8,2630.2,0.98154954]
[1727697583862,0.38012,2630.6,2630.4,0.38014]
[1727697584360,0.38012,2630.6,2630.3,1.36169954]
[1727697584961,0.38013,2630.6,2630.3,1.36169954]
[1727697585158,0.38013,2630.6,2630.3,0.38015]
[1727697587362,2.7675,2630.8,2630.3,0.38016]
[1727697587363,0.38014,2630.5,2630.3,0.38016]
[1727697588156,3.71775,2630.8,2630.3,0.38016]
[1727697588661,0.38012,2630.6,2630.4,4.47572991]
[1727697588865,0.38012,2630.6,2630.4,0.38014]
[1727697589565,0.38013,2630.5,2630.3,0.38015]
[1727697589762,0.38013,2630.5,2630.1,2.37]
[1727697589964,0.38013,2630.5,2630.4,0.38015]
[1727697590161,0.38013,2630.5,2630.2,4.34452123]
[1727697591061,5.53614,2630.8,2630.4,0.38014]
[1727697591259,0.38013,2630.5,2630.4,0.38014]
[1727697592062,2.32834,2630.8,2630.4,0.38014]
[1727697592770,0.38013,2630.5,2630.4,0.38014]
[1727697593359,2.32834,2630.8,2630.2,4.34452123]
[1727697593666,0.38014,2630.5,2630.4,0.38014]
[1727697594268,0.38014,2630.5,2630.4,0.38015]
[1727697597271,0.38014,2630.5,2630.3,0.38015]
[1727697597472,0.95027,2630.7,2630.3,0.38015]
[1727697597968,0.38014,2630.5,2630.2,4.34452123]
[1727697598169,2.32834,2630.8,2630.2,4.34452123]
[1727697598366,0.9503,2630.6,2630.3,0.38016]
[1727697598572,0.38015,2630.4,2630.3,0.38016]
[1727697599269,0.38014,2630.5,2630.4,0.38014]
[1727697600569,1.3781,2630.8,2630.1,4.30202954]
[1727697600570,0.95031,2630.6,2630.1,4.30202954]
[1727697600763,0.95031,2630.6,2630.1,3.35154954]
[1727697600964,0.38015,2630.5,2630.1,4.30202954]
[1727697601272,0.38015,2630.5,2630.4,0.38015]
[1727697602474,0.38012,2630.6,2630.5,0.38012]
[1727697602774,3.2078,2631.4,2630.5,6.36074841]
[1727697602975,0.38001,2631.4,2631.3,0.38002]
[1727697603279,1.3972,2631.8,2631.0,0.95016]
[1727697603473,0.38003,2631.2,2631.1,0.38004]
[1727697603674,0.38003,2631.2,2630.8,4.15801]
[1727697603675,0.95008,2631.2,2630.8,3.2078]
[1727697603868,0.38007,2630.9,2630.8,3.2078]
[1727697604070,0.95016,2631.0,2630.4,4.15817]
[1727697604269,0.38013,2630.6,2630.4,3.2078]
[1727697604566,0.0341,2630.6,2630.3,0.38015]
[1727697604767,0.3802,2630.1,2629.9,0.38021]
[1727697605477,1.448,2630.4,2629.9,0.38021]
[1727697605478,0.3802,2630.0,2629.9,0.38021]
[1727697605779,0.95045,2630.2,2629.8,0.38023]
[1727697605780,0.38022,2629.9,2629.8,0.38023]
[1727697605971,0.3802,2630.1,2629.7,1.1]
[1727697606280,2.8891,2630.4,2629.8,1.1]
[1727697606487,0.38021,2630.0,2629.8,0.38023]
[1727697606869,0.95046,2630.2,2629.7,1.1]
[1727697607074,1.1,2630.0,2629.5,3.2078]
[1727697607378,1.1,2629.6,2629.0,2.45834954]
[1727697607678,7.0358,2629.5,2629.0,1.4768]
[1727697607870,3.828,2629.5,2629.0,1.4768]
[1727697608072,0.38032,2629.2,2629.0,1.85714]
[1727697608369,0.38035,2629.0,2628.9,3.94904586]
[1727697608570,0.38035,2629.0,2628.9,0.74124586]
[1727697608766,4.18435,2629.0,2628.9,0.74124586]
[1727697609076,3.804,2629.0,2628.9,0.74124586]
[1727697609273,44.0078,2629.4,2628.9,0.74124586]
[1727697609473,0.3803,2629.4,2629.1,0.38032]
[1727697609674,0.38019,2630.1,2629.4,0.95073]
[1727697609977,4.19222,2630.6,2630.3,0.38016]
[1727697609978,1.82874,2630.5,2630.3,0.38016]
[1727697610166,1.82874,2630.5,2630.3,0.38015]
[1727697610167,1.4486,2630.5,2630.3,0.38015]
[1727697610668,1.4486,2630.5,2630.3,0.38016]
[1727697610870,0.38015,2630.4,2630.2,0.38017]
[1727697611067,1.82874,2630.5,2630.2,0.38017]
[1727697611280,1.4486,2630.5,2630.0,2.38]
[1727697611478,0.38015,2630.4,2630.1,0.38018]
[1727697611673,1.4486,2630.5,2630.0,2.76019]
[1727697611981,1.82874,2630.5,2630.2,0.38017]
[1727697612173,0.0341,2630.6,2630.1,7.26314609]
[1727697612378,0.38014,2630.5,2630.3,0.38016]
[1727697612774,0.0341,2630.6,2630.1,3.2078]
[1727697612978,0.38014,2630.5,2630.2,0.38017]
[1727697613281,0.0341,2630.6,2630.1,3.2078]
[1727697613476,0.0341,2630.6,2630.0,2.38]
[1727697613477,0.38018,2630.2,2630.0,0.3802]
[1727697613883,0.98443,2630.6,2629.9,5.02811]
[1727697614188,0.3802,2630.1,2629.8,2.76023]
[1727697614482,0.3802,2630.1,2629.6,3.2078]
[1727697614483,0.38022,2629.9,2629.7,0.38024]
[1727697614681,0.95045,2630.2,2629.5,3.7795]
[1727697614881,0.95045,2630.2,2629.8,0.38023]